bitfinex-derivatives/quotes_ETHF0:USTF0_20210702
["timestamp","ask_amount","ask_price","bid_price","bid_amount"]
[1625197287805,2.9546,2051.7,2051.5,2.20527]
[1625197288001,1.7567,2051.7,2051.5,2.20527]
[1625197288148,0.8043,2051.7,2051.5,2.20527]
[1625197288249,0.4431,2051.7,2051.5,2.20527]
[1625197288857,13.40527,2052.2,2051.5,2.20527]
[1625197288955,13.40527,2052.2,2051.5,60.78557]
[1625197289606,13.40527,2052.2,2051.9,2.20527]
[1625197291571,2.20527,2052.0,2051.9,2.20527]
[1625197294590,2.20527,2052.0,2051.5,2.20527]
[1625197295639,2.20527,2051.6,2051.5,2.20527]
[1625197296489,1.66977,2051.6,2051.5,2.20527]
[1625197296940,1.66977,2051.6,2051.3,0.9675]
[1625197297039,46.9768,2051.5,2051.3,0.9675]
[1625197297642,2.20527,2051.4,2051.3,0.9675]
[1625197297942,2.20527,2051.4,2050.8,2.20527]
[1625197299598,2.20527,2051.4,2051.1,2.20527]
[1625197299700,2.20527,2051.4,2051.1,3.17977]
[1625197300808,2.20527,2051.4,2051.1,7e-05]
[1625197300908,2.20527,2051.4,2050.8,2.20527]
[1625197301006,4.99207,2051.4,2050.8,2.20527]
[1625197301661,4.41054,2050.9,2050.8,2.20527]
[1625197302660,11.2,2052.2,2050.8,2.20527]
[1625197302760,11.2,2052.2,2050.8,5.48507]
[1625197303613,11.2,2052.2,2051.6,2.20527]
[1625197303714,2.20527,2051.7,2051.6,2.20527]
[1625197304313,1.46377,2051.7,2051.6,2.20527]
[1625197304415,11.2,2052.2,2051.6,2.20527]
[1625197304515,10.9703,2052.2,2051.6,2.20527]
[1625197304812,5.7944,2052.2,2051.6,2.20527]
[1625197305717,5.7944,2052.2,2052.1,4.41054]
[1625197307125,5.7944,2052.2,2052.1,7.01374]
[1625197308882,5.7944,2052.2,2052.1,2.20527]
[1625197309081,5.7944,2052.2,2051.3,1.15]
[1625197309182,9.377,2052.2,2051.3,1.15]
[1625197309436,9.377,2052.2,2050.9,0.9776]
[1625197309536,9.377,2052.2,2050.2,1.0]
[1625197309689,2.20527,2051.8,2051.7,2.20527]
[1625197311546,2.20527,2051.8,2050.2,14.8021]
[1625197311742,2.20527,2051.2,2051.1,2.20527]
[1625197311893,4.83367,2051.2,2051.1,2.20527]
[1625197312196,3.51877,2051.2,2051.1,2.20527]
[1625197312345,2.79717,2051.2,2051.1,2.20527]
[1625197312597,2.79717,2051.2,2051.1,3.17667]
[1625197312998,1.57967,2051.2,2051.1,3.17667]
[1625197313601,0.85717,2051.2,2051.1,3.17667]
[1625197313699,3.06244,2051.2,2051.1,3.17667]
[1625197314656,2.86724,2051.2,2051.1,3.17667]
[1625197315203,2.86724,2051.2,2051.1,0.9714]
[1625197316111,0.66197,2051.2,2051.1,0.9714]
[1625197316264,2.20527,2051.4,2051.1,0.9714]
[1625197317566,1.47557,2051.4,2051.1,0.9714]
[1625197317764,0.81747,2051.4,2051.3,2.20527]
[1625197317865,2.20527,2051.8,2051.3,2.20527]
[1625197319769,2.20527,2051.8,2051.7,2.20527]
[1625197325253,5.7944,2052.2,2051.7,4.62577]
[1625197325351,4.5875,2052.2,2051.7,4.62577]
[1625197325452,3.8841,2052.2,2051.7,4.62577]
[1625197325551,1.0642,2052.2,2051.7,4.62577]
[1625197325700,22.022,2052.3,2051.7,4.62577]
[1625197325802,22.022,2052.3,2052.2,54.1209]
[1625197325902,22.022,2052.3,2052.2,57.5024]
[1625197326008,21.1602,2052.3,2052.2,57.5024]
[1625197326111,6.8786,2052.3,2052.2,57.5024]
[1625197326207,5.3708,2052.3,2052.2,57.5024]
[1625197326305,3.2453,2052.3,2052.2,57.5024]
[1625197326454,6.656,2052.5,2052.2,57.5024]
[1625197326556,5.8521,2052.5,2052.2,62.5024]
[1625197326655,3.9214,2052.5,2052.2,62.5024]
[1625197326910,2.9008,2052.5,2052.2,62.5024]
[1625197327011,2.1781,2052.5,2052.3,17.71]
[1625197327105,0.7292,2052.5,2052.3,17.71]
[1625197327206,18.8918,2052.6,2052.3,17.71]
[1625197327308,17.7051,2052.6,2052.3,17.71]
[1625197327408,5.6,2052.6,2052.3,17.71]
[1625197327557,0.2291,2052.6,2052.4,5.1598777]
[1625197327807,0.2291,2052.6,2052.5,2.36514653]
[1625197327908,0.2291,2052.6,2052.5,20.12514653]
[1625197328059,16.5317,2052.7,2052.5,20.12514653]
[1625197328312,15.3792,2052.7,2052.6,0.15986956]
[1625197328510,15.2791,2052.7,2052.5,19.96527]
[1625197328608,15.2791,2052.7,2052.6,17.7]
[1625197329060,15.1791,2052.7,2052.6,17.7]
[1625197329813,15.0432,2052.7,2052.6,19.90527]
[1625197330867,14.6432,2052.7,2052.6,19.90527]
[1625197331467,14.5081,2052.7,2052.6,19.90527]
[1625197333895,14.0187,2052.7,2052.6,19.90527]
[1625197334549,14.0187,2052.7,2052.6,2.20527]
[1625197335201,13.3435,2052.7,2052.6,2.20527]
[1625197335701,13.3435,2052.7,2052.6,7e-05]
[1625197335804,16.9053,2052.7,2052.2,2.38975611]
[1625197335907,21.31584,2052.7,2052.4,0.02124]
[1625197336002,21.31584,2052.7,2052.2,2.38975611]
[1625197336202,21.31584,2052.7,2052.2,0.9642]
[1625197336304,58.6061,2052.6,2052.2,0.9642]
[1625197337405,58.6061,2052.6,2051.4,1.42627283]
[1625197337807,58.6061,2052.6,2051.3,1.426703]
[1625197337908,2.20527,2051.7,2051.4,2.20527]
[1625197338008,4.88967,2051.7,2051.4,2.20527]
[1625197338858,3.63887,2051.7,2051.4,2.20527]
[1625197339710,3.63887,2051.7,2051.1,2.3984382]
[1625197339861,2.20527,2051.2,2051.1,3.17667]
[1625197339960,5.05877,2051.2,2051.1,3.17667]
[1625197341017,2.20527,2051.2,2051.1,3.17667]
[1625197341210,1.11907,2051.2,2051.1,3.17667]
[1625197341913,0.52597,2051.2,2051.1,3.17667]
[1625197342063,0.81217,2051.7,2051.1,3.17667]
[1625197343966,2.68824,2051.7,2051.6,2.20527]
[1625197344068,2.20534,2051.7,2051.6,2.20527]
[1625197345923,1.61354,2051.7,2051.6,2.20527]
[1625197347077,1.04834,2051.7,2051.6,2.20527]
[1625197347988,1.04834,2051.7,2051.6,4.41054]
[1625197348186,0.33024,2051.7,2051.6,4.41054]
[1625197349739,2.69184,2051.7,2051.6,4.41054]
[1625197351052,0.33024,2051.7,2051.6,4.41054]
[1625197351251,2.20527,2051.9,2051.6,4.41054]
[1625197351949,4.41054,2051.9,2051.6,4.41054]
[1625197353805,4.41054,2051.9,2051.6,2.20527]
[1625197361885,7.16894,2051.9,2051.6,2.20527]
[1625197362834,7.16894,2051.9,2051.4,2.20527]
[1625197364054,2.20527,2051.5,2051.4,2.20527]
[1625197366610,1.45147,2051.5,2051.4,2.20527]
[1625197366759,1.33947,2051.5,2051.4,2.20527]
[1625197367008,0.64787,2051.5,2051.4,2.20527]
[1625197368414,27.76756675,2051.7,2051.4,2.20527]
[1625197368566,25.13606675,2051.7,2051.4,5.50217]
[1625197368669,23.00556675,2051.7,2051.4,5.50217]
[1625197369368,22.47876675,2051.7,2051.4,5.50217]
[1625197369881,21.75976675,2051.7,2051.4,5.50217]
[1625197369981,21.03086675,2051.7,2051.4,5.50217]
[1625197370082,21.03086675,2051.7,2051.6,2.20527]
[1625197370334,20.07606675,2051.7,2051.6,2.20527]
[1625197370433,18.92376675,2051.7,2051.6,2.20527]
[1625197372689,18.92376675,2051.7,2051.4,2.20527]
[1625197372798,18.92376675,2051.7,2051.1,0.9714]
[1625197372799,22.41466675,2051.7,2051.1,0.9714]
[1625197373137,41.3287,2051.5,2051.1,0.9714]
[1625197373992,22.41466675,2051.7,2051.1,0.9714]
[1625197374137,22.41466675,2051.7,2051.5,2.20527]
[1625197375139,64.71296675,2051.7,2051.5,2.20527]
[1625197376245,2.20527,2051.6,2051.5,2.20527]
[1625197376342,2.20527,2051.6,2051.3,2.20527]
[1625197376441,2.20527,2051.6,2051.1,0.9714]
[1625197376644,2.20527,2051.6,2051.1,0.0001]
[1625197377112,2.20527,2051.6,2050.6,1.43131635]
[1625197377413,2.20527,2051.6,2050.4,2.8626327]
[1625197377716,2.20527,2051.6,2050.3,1.43126369]
[1625197377815,3.20527,2051.6,2050.3,1.43126369]
[1625197378116,5.0,2051.5,2050.3,1.43126369]
[1625197378217,4.41054,2050.4,2050.3,1.43126369]
[1625197378316,6.80254,2050.4,2050.3,1.43126369]
[1625197378517,6.80254,2050.4,2050.3,0.9611]
[1625197378869,56.8108,2050.1,2048.4,24.94851896]
[1625197378968,1.0,2050.0,2049.3,2.86171096]
[1625197379068,6.0,2050.0,2048.6,5.72342192]
[1625197379370,6.0,2050.0,2048.4,0.9729]
[1625197379569,6.0,2050.0,2047.5,0.9807]
[1625197379974,1.0,2049.8,2047.5,0.9807]
[1625197380072,3.399,2049.8,2047.5,0.9807]
[1625197380171,2.20527,2048.2,2048.1,2.20527]
[1625197380427,3.2181,2048.5,2047.0,5.16189883]
[1625197380523,3.2181,2048.5,2047.4,0.9626]
[1625197380624,3.2181,2048.5,2047.0,5.16189883]
[1625197380728,8.2181,2048.5,2046.6,5.72867437]
[1625197380827,61.3498,2047.2,2046.6,5.72867437]
[1625197381186,2.7977,2047.5,2046.6,5.72867437]
[1625197381688,2.7977,2047.5,2046.5,0.9668]
[1625197381788,51.0966,2047.4,2045.8,7.16267871]
[1625197381989,51.0966,2047.4,2046.2,0.15996298]
[1625197382140,51.0966,2047.4,2045.6,7.16341927]
[1625197382241,2.20527,2046.9,2046.8,2.20527]
[1625197382541,4.61127,2046.9,2046.6,2.20527]
[1625197382643,4.61127,2046.9,2045.5,1.0]
[1625197382742,4.61127,2046.9,2045.4,4.766]
[1625197382844,53.214,2046.8,2045.4,4.766]
[1625197382952,53.214,2046.8,2045.0,8.10662577]
[1625197383151,53.214,2046.8,2045.0,0.9691]
[1625197383244,53.214,2046.8,2044.8,7.13687643]
[1625197383703,5.0,2046.7,2044.8,7.13687643]
[1625197383795,4.61127,2046.9,2044.8,7.13687643]
[1625197384197,4.41054,2044.9,2044.8,7.13687643]
[1625197384297,4.41054,2044.9,2044.8,8.10757643]
[1625197384397,4.41054,2044.9,2044.8,0.9707]
[1625197384398,7.11204,2044.9,2044.8,0.9707]
[1625197386479,7.11204,2044.9,2044.0,2.20527]
[1625197388223,2.20527,2044.1,2044.0,2.20527]
[1625197388322,4.61267,2044.1,2044.0,2.20527]
[1625197388520,4.06887,2044.1,2044.0,2.20527]
[1625197388621,0.41417,2044.1,2044.0,2.20527]
[1625197388822,7e-05,2044.1,2044.0,2.20527]
[1625197389927,2.10554,2044.3,2044.0,2.20527]
[1625197390077,16.0539,2044.8,2044.0,2.20527]
[1625197390176,16.0539,2044.8,2044.0,5.85527]
[1625197390277,5.4095,2044.8,2044.7,4.41054]
[1625197390380,2.20527,2045.4,2044.7,8.54874]
[1625197390584,2.20527,2045.4,2045.0,43.0798]
[1625197390878,6.46357539,2048.8,2045.0,43.0798]
[1625197390979,5.9855,2048.5,2045.0,43.0798]
[1625197391129,14.5275,2046.8,2045.0,43.0798]
[1625197391231,0.9855,2048.5,2045.5,1.15]
[1625197391432,0.9855,2048.5,2045.5,2.126]
[1625197391631,0.9855,2048.5,2045.5,5.48]
[1625197391835,48.0152,2047.6,2045.5,5.48]
[1625197391931,48.0152,2047.6,2045.6,17.7]
[1625197392235,2.20527,2046.5,2046.4,2.20527]
[1625197392352,2.20527,2046.5,2045.5,0.976]
[1625197392434,3.17947,2046.5,2045.5,0.976]
[1625197392533,2.20527,2046.5,2045.5,0.976]
[1625197392884,3.20527,2046.5,2044.7,0.9888]
[1625197393086,2.20527,2046.5,2044.7,0.9888]
[1625197393939,2.20527,2046.5,2044.7,60.6114]
[1625197394239,2.20527,2046.5,2046.1,2.20527]
[1625197395493,2.20527,2046.5,2045.9,2.20527]
[1625197395995,2.20527,2046.5,2044.7,1.9617]
[1625197396094,2.20527,2046.5,2044.7,0.9888]
[1625197396246,2.20527,2045.4,2045.3,2.20527]
[1625197397353,2.20527,2045.4,2044.7,0.9888]
[1625197397453,2.20527,2045.4,2044.1,13.31694]
[1625197397656,2.20527,2045.4,2040.9,1.1]
[1625197397756,2.20527,2045.4,2042.1,1.0]
[1625197398162,2.20527,2045.4,2043.7,17.63]
[1625197398258,2.20527,2045.4,2045.0,2.20527]
[1625197398358,2.20527,2045.4,2045.0,5.23497]
[1625197398458,2.20527,2045.4,2045.0,6.22137]
[1625197398960,0.9883,2049.5,2045.0,6.22137]
[1625197399260,65.198,2048.9,2045.0,6.22137]
[1625197399362,1.0,2048.8,2045.0,6.22137]
[1625197399465,1.0,2048.8,2045.5,1.15]
[1625197399613,1.0,2048.8,2045.5,5.1918]
[1625197400072,1.0,2048.8,2045.5,10.1918]
[1625197400169,17.75,2048.7,2045.5,10.1918]
[1625197400272,2.20527,2047.4,2047.3,2.20527]
[1625197400374,2.20527,2047.4,2047.3,4.51857]
[1625197400770,0.98487,2047.4,2047.3,4.51857]
[1625197401574,0.98487,2047.4,2047.3,5.50567]
[1625197401773,0.98487,2047.4,2047.3,3.3004]
[1625197401872,0.98487,2047.4,2047.3,0.9871]
[1625197401974,3.45597,2047.4,2047.3,0.9871]
[1625197402272,5.60254,2047.4,2047.3,0.9871]
[1625197404279,5.60254,2047.4,2047.3,3.19237]
[1625197411580,5.60254,2047.4,2047.3,0.9871]
[1625197412380,5.60254,2047.4,2047.3,3.19237]
[1625197412481,5.60254,2047.4,2047.3,0.9871]
[1625197415445,5.60254,2047.4,2047.2,2.20527]
[1625197420055,3.13144,2047.4,2047.2,2.20527]
[1625197424126,6.11844,2047.4,2047.2,2.20527]
[1625197430946,3.13144,2047.4,2047.2,5.56097]
[1625197432598,2.62794,2047.4,2047.2,5.56097]
[1625197432700,2.18244,2047.4,2047.2,5.56097]
[1625197432798,2.08244,2047.4,2047.2,5.56097]
[1625197434451,2.08244,2047.4,2047.3,2.20527]
[1625197434600,2.08244,2047.4,2047.3,3.17167]
[1625197435350,2.08244,2047.4,2047.3,2.20527]
[1625197435653,2.08244,2047.4,2046.2,5.0]
[1625197435802,4.56514,2047.4,2046.2,5.0]
[1625197436153,4.56514,2047.4,2046.7,1.15]
[1625197436509,6.77041,2047.4,2047.1,2.20527]
[1625197437256,6.77041,2047.4,2046.7,1.15]
[1625197437353,6.77041,2047.4,2045.5,0.9714]
[1625197437855,6.77041,2047.4,2046.0,1.15]
[1625197438454,6.77041,2047.4,2046.0,2.1182]
[1625197438555,2.20527,2046.6,2046.5,2.20527]
[1625197438758,2.20527,2046.6,2046.3,2.20527]
[1625197438858,2.20527,2046.6,2046.0,1.15]
[1625197438956,2.20527,2046.6,2045.5,0.9714]
[1625197440559,2.20527,2046.6,2046.1,2.20527]
[1625197440658,2.20527,2046.6,2045.5,0.9714]
[1625197442513,3.4949,2046.8,2045.5,0.9714]
[1625197442514,2.20527,2046.0,2045.9,2.20527]
[1625197443267,2.20527,2046.0,1984.9,97.73516587]
[1625197443418,4.71617,2046.0,2042.2,1.1]
[1625197443565,4.71617,2046.0,2043.8,5.0]
[1625197443665,4.71617,2046.0,2043.8,1.0]
[1625197444515,4.71617,2046.0,2045.1,2.20527]
[1625197444516,2.20527,2045.2,2045.1,2.20527]
[1625197446120,2.20527,2045.2,2043.8,1.0]
[1625197446272,4.59187,2045.2,2043.6,75.837]
[1625197446379,4.59187,2045.2,2043.8,0.16021846]
[1625197446530,2.20527,2044.5,2044.4,2.20527]
[1625197447289,2.20527,2044.5,2044.4,3.18147]
[1625197448542,4.41054,2044.5,2044.4,3.18147]
[1625197449199,4.41054,2044.5,2043.4,0.9824]
[1625197449295,4.41054,2044.5,2043.4,0.99]
[1625197449646,4.41054,2044.5,2043.4,46.5739]
[1625197449849,4.41054,2044.5,2043.5,0.16011325]
[1625197449951,4.41054,2044.5,2043.5,3.59081325]
[1625197450155,4.41054,2044.5,2043.5,2.60561325]
[1625197450355,4.41054,2044.5,2043.5,2.4455]
[1625197450557,2.20527,2044.5,2044.0,2.20527]
[1625197451607,2.20527,2044.5,2043.8,2.20527]
[1625197451710,5.45177,2044.5,2043.8,2.20527]
[1625197452560,2.20527,2044.2,2043.8,2.20527]
[1625197453114,4.71787,2044.2,2043.8,2.20527]
[1625197454669,2.20527,2043.9,2043.8,2.20527]
[1625197457070,2.20527,2043.9,2043.4,1.36574]
[1625197457369,2.20527,2043.9,2042.3,1.0]
[1625197457521,2.20527,2043.9,2042.0,2.09606437]
[1625197458579,3.0161,2044.1,2042.4,2.20527]
[1625197458580,4.41054,2042.8,2042.4,2.20527]
[1625197462594,4.41054,2042.8,2042.7,2.74314386]
[1625197463194,13.8783,2044.0,2042.7,2.74314386]
[1625197463294,13.8783,2044.0,2043.5,56.6747]
[1625197463496,13.8783,2044.0,2043.5,61.2644]
[1625197463744,12.7096,2044.0,2043.5,61.2644]
[1625197463847,11.5243,2044.0,2043.5,61.2644]
[1625197464047,11.5243,2044.0,2043.6,17.8]
[1625197464199,10.5585,2044.0,2043.6,17.8]
[1625197464697,10.5585,2044.0,2043.9,4.41054]
[1625197465099,2.20527,2044.8,2043.9,4.41054]
[1625197465499,2.20527,2045.0,2043.9,4.41054]
[1625197465802,2.20527,2045.0,2044.4,1.15]
[1625197465899,2.20527,2045.0,2044.4,3.6547]
[1625197466151,2.20527,2045.0,2044.5,17.85]
[1625197466451,2.20527,2045.0,2044.4,1.15]
[1625197466552,5.67107,2045.0,2044.4,1.15]
[1625197466702,7.87634,2045.0,2044.9,2.20527]
[1625197466909,5.67107,2045.0,2044.9,2.20527]
[1625197467011,1.0,2047.1,2044.9,4.88657]
[1625197467112,14.5851,2047.1,2044.9,4.88657]
[1625197467612,14.5851,2047.1,2044.9,5.85937]
[1625197468711,2.20527,2046.0,2045.9,2.20527]
[1625197474384,1.0,2047.2,2045.9,2.20527]
[1625197474471,1.0,2047.6,2045.9,4.88177]
[1625197474571,14.8448,2047.7,2045.9,4.88177]
[1625197474735,2.20527,2046.9,2046.8,2.20527]
[1625197474821,2.20527,2046.9,2046.8,5.53227]
[1625197476023,14.8448,2047.7,2046.8,5.53227]
[1625197476773,2.20527,2047.6,2047.4,2.20527]
[1625197478774,2.20527,2047.5,2047.4,2.20527]
[1625197482706,14.8448,2047.7,2047.4,2.20527]
[1625197482809,14.8448,2047.7,2047.6,2.20527]
[1625197482911,2.20527,2048.4,2047.6,2.20527]
[1625197483056,2.20527,2048.4,2047.9,1.15]
[1625197483159,2.20527,2048.6,2047.9,1.15]
[1625197483160,15.175,2049.0,2047.9,3.5998]
[1625197483418,3.41821082,2050.4,2048.3,60.3029]
[1625197483511,3.41821082,2050.4,2047.9,4.5998]
[1625197483660,3.41821082,2050.4,2047.6,2.20527]
[1625197483861,6.0,2050.3,2047.6,2.20527]
[1625197484061,47.8752,2050.0,2047.6,2.20527]
[1625197484163,1.0,2049.9,2047.6,2.20527]
[1625197484866,2.20527,2049.0,2048.9,2.20527]
[1625197485975,1.0,2050.0,2048.9,2.20527]
[1625197486079,0.9773,2050.9,2048.9,2.20527]
[1625197486178,1.0,2051.1,2048.9,2.20527]
[1625197486327,3.42181151,2051.3,2048.9,2.20527]
[1625197486629,3.42181151,2051.3,2048.9,43.75137]
[1625197486831,2.20527,2050.5,2050.4,2.20527]
[1625197486930,2.20527,2050.5,2050.1,2.20527]
[1625197487180,2.20527,2050.5,2050.1,1.05090001]
[1625197488830,2.20527,2050.5,2050.4,2.20527]
[1625197488931,2.20527,2050.5,2050.4,5.85767]
[1625197490987,2.20527,2050.5,2050.4,2.20527]
[1625197494307,5.69977,2050.5,2050.4,2.20527]
[1625197495562,5.69977,2050.5,2050.1,1.05090001]
[1625197495661,5.69977,2050.5,2048.8,14.7185]
[1625197495863,5.69977,2050.5,2047.4,1.0]
[1625197495965,5.69977,2050.5,2047.3,0.9838]
[1625197496113,5.69977,2050.5,2047.4,14.5713]
[1625197496364,43.1713,2049.9,2047.4,14.5713]
[1625197496463,46.4688,2049.9,2047.4,14.5713]
[1625197496563,3.2975,2049.9,2047.9,1.15]
[1625197496918,2.20527,2049.6,2049.5,2.20527]
[1625197497220,14.6093,2050.4,2049.5,2.20527]
[1625197497323,15.5042,2050.8,2049.5,4.99037]
[1625197497723,15.5042,2050.8,2050.0,1.15]
[1625197498476,15.5042,2050.8,2049.5,2.20527]
[1625197498572,18.4172,2050.8,2049.5,2.20527]
[1625197498923,2.20527,2050.1,2050.0,2.20527]
[1625197499025,5.06977,2050.1,2050.0,2.20527]
[1625197500927,7.27504,2050.1,2050.0,2.20527]
[1625197503787,7.27504,2050.1,2049.5,2.20527]
[1625197504382,7.27504,2050.1,2048.6,15.9515]
[1625197504634,7.27504,2050.1,2047.2,1.0]
[1625197504784,7.27504,2050.1,2048.0,5.0]
[1625197504883,2.20527,2049.4,2049.3,2.20527]
[1625197504984,5.01597,2049.4,2049.3,2.20527]
[1625197505433,2.8107,2049.4,2049.3,2.20527]
[1625197510111,2.20527,2049.5,2049.3,2.20527]
[1625197510917,2.20527,2049.4,2049.3,2.20527]
[1625197511015,5.58677,2049.4,2049.3,2.20527]
[1625197512436,3.3815,2049.4,2049.3,2.20527]
[1625197512939,2.20527,2049.7,2049.3,2.20527]
[1625197514988,2.20527,2049.7,2049.6,2.20527]
[1625197516490,15.5042,2050.8,2049.6,2.20527]
[1625197516940,2.20527,2050.0,2049.9,2.20527]
[1625197517642,15.5042,2050.8,2049.9,2.20527]
[1625197518197,15.5042,2050.8,2049.9,4.81377]
[1625197518445,15.5042,2050.8,2050.4,1.15]
[1625197518542,13.9912,2050.8,2050.4,4.06]
[1625197518792,13.9912,2050.8,2050.5,17.79]
[1625197519043,13.9912,2050.8,2050.7,4.41054]
[1625197519393,13.9912,2050.8,2050.7,22.04054]
[1625197519544,0.9857,2052.7,2050.7,22.04054]
[1625197519692,1.0,2052.9,2050.7,22.04054]
[1625197519693,5.0,2053.7,2050.7,22.04054]
[1625197519796,1.0,2053.6,2050.7,22.04054]
[1625197519996,1.0,2053.6,2051.0,1.15]
[1625197520144,1.0,2053.6,2051.0,3.6372]
[1625197520948,2.20527,2051.8,2051.7,2.20527]
[1625197521396,1.0,2053.7,2051.7,2.20527]
[1625197521495,5.0,2054.0,2051.7,2.20527]
[1625197522001,5.0,2054.0,2051.0,2.15]
[1625197522152,1.0,2053.9,2051.0,1.15]
[1625197522354,18.59,2053.9,2051.0,1.15]
[1625197522451,1.0,2053.7,2049.8,1.9813]
[1625197522551,1.0,2053.7,2049.8,1.0]
[1625197522701,44.8003,2052.1,2049.8,1.0]
[1625197522804,48.0013,2052.1,2049.0,0.9874]
[1625197522901,1.0,2052.0,2047.3,2.0833]
[1625197523001,2.20527,2051.1,2050.7,2.20527]
[1625197523263,3.201,2052.1,2050.7,2.20527]
[1625197524857,1.0,2052.7,2050.7,2.20527]
[1625197524958,2.20527,2051.4,2051.3,2.20527]
[1625197526474,2.20527,2051.4,2050.7,2.20527]
[1625197526977,4.41054,2051.4,2051.3,2.20527]
[1625197529835,2.20527,2051.4,2051.3,2.20527]
[1625197530989,4.41054,2051.4,2051.3,2.20527]
[1625197531390,4.41054,2051.4,2050.7,2.20527]
[1625197531490,7.32204,2051.4,2050.3,1.15]
[1625197531655,7.32204,2051.4,2049.4,14.8558]
[1625197533002,2.20527,2050.5,2050.4,2.20527]
[1625197534460,2.20527,2050.5,2049.4,14.8558]
[1625197534709,2.20527,2050.5,2048.1,1.0]
[1625197534810,2.20527,2050.5,2048.0,5.0]
[1625197534910,3.20527,2050.5,2048.0,5.0]
[1625197535062,2.20527,2050.0,2049.9,2.20527]
[1625197535963,15.5553,2050.8,2049.9,2.20527]
[1625197537024,2.20527,2050.0,2049.9,2.20527]
[1625197537126,5.02617,2050.0,2049.9,2.20527]
[1625197539530,5.02617,2050.0,2044.6,7.01239516]
[1625197539629,5.02617,2050.0,2046.6,1.0]
[1625197539832,5.02617,2050.0,2046.6,15.9897]
[1625197539933,5.02617,2050.0,2046.9,1.0]
[1625197540036,50.214,2049.6,2046.8,5.0]
[1625197540183,5.02617,2050.0,2046.8,5.0]
[1625197540282,5.02617,2050.0,2047.1,8.18249852]
[1625197540482,5.02617,2050.0,2047.8,1.15]
[1625197540840,55.0921,2049.7,2047.8,1.15]
[1625197541040,2.20527,2048.7,2048.6,2.20527]
[1625197541140,2.20527,2048.7,2047.8,1.15]
[1625197541141,5.79707,2048.7,2047.8,1.15]
[1625197541441,5.79707,2048.7,2047.1,3.18249852]
[1625197542292,10.79707,2048.7,2047.1,3.18249852]
[1625197542595,5.79707,2048.7,2047.1,3.18249852]
[1625197542695,5.0,2048.6,2047.1,3.18249852]
[1625197542897,5.0,2048.6,2047.1,9.852e-05]
[1625197543095,4.41054,2047.2,2047.1,9.852e-05]
[1625197543245,6.95334,2047.2,2047.1,9.852e-05]
[1625197544603,11.95334,2047.2,2047.1,9.852e-05]
[1625197544701,6.95334,2047.2,2047.1,9.852e-05]
[1625197544998,6.95334,2047.2,2046.3,0.00019704]
[1625197545102,6.95334,2047.2,2044.9,1.0]
[1625197545103,6.95334,2047.2,2045.8,2.20527]
[1625197547105,2.20527,2046.2,2045.8,4.41054]
[1625197549108,2.20527,2046.4,2046.1,2.20527]
[1625197549207,2.5428,2047.2,2046.1,2.20527]
[1625197549309,60.9512,2047.5,2046.1,2.20527]
[1625197549870,60.9512,2047.5,2045.8,2.20527]
[1625197549962,64.1072,2047.5,2045.8,2.20527]
[1625197551170,2.20527,2045.9,2045.8,4.41054]
[1625197551765,3.2997,2046.9,2045.8,4.41054]
[1625197552016,3.2997,2046.9,2045.8,7.90394]
[1625197552367,15.9914,2047.7,2045.8,7.90394]
[1625197553086,2.20527,2046.7,2046.6,2.20527]
[1625197553687,2.20527,2046.7,2046.4,2.20527]
[1625197553788,2.20527,2046.7,2044.8,3.18249852]
[1625197554688,44.34667,2046.7,2044.8,3.18249852]
[1625197554838,49.34667,2046.7,2044.8,3.18249852]
[1625197554940,49.34667,2046.7,2045.5,9.852e-05]
[1625197555144,4.41054,2045.6,2045.5,9.852e-05]
[1625197555240,6.74684,2045.6,2045.5,9.852e-05]
[1625197560609,6.74684,2045.6,2044.0,3.18249852]
[1625197561113,4.41054,2044.1,2044.0,3.18249852]
[1625197561213,8.01094,2044.1,2044.0,3.18249852]
[1625197562316,4.41054,2044.1,2044.0,3.18249852]
[1625197564377,3.3126,2046.2,2044.0,3.18249852]
[1625197564478,3.3126,2046.2,2044.0,6.73029852]
[1625197565231,4.41054,2044.1,2044.0,6.73029852]
[1625197568149,2.20527,2044.1,2044.0,6.73029852]
[1625197568249,14.5877,2046.6,2044.0,6.73029852]
[1625197568902,14.5877,2046.6,2044.1,17.82]
[1625197569202,2.20527,2045.0,2044.9,2.20527]
[1625197569305,2.20527,2045.0,2044.9,5.78487]
[1625197570558,14.5877,2046.6,2044.9,6.74987]
[1625197570958,14.5877,2046.6,2045.4,1.15]
[1625197571057,14.5877,2046.6,2045.4,3.7329]
[1625197571257,2.20527,2046.1,2046.0,2.20527]
[1625197571359,2.20527,2046.1,2046.0,5.91947]
[1625197573269,4.41054,2046.1,2046.0,5.91947]
[1625197573824,15.0018,2048.1,2046.0,6.88377]
[1625197573825,15.3625,2048.0,2046.0,6.88377]
[1625197574223,15.3625,2048.0,2046.5,1.15]
[1625197574473,15.3625,2048.0,2046.0,2.20527]
[1625197575227,2.20527,2046.6,2046.4,2.20527]
[1625197575528,4.85707,2046.6,2046.4,2.20527]
[1625197575675,4.85707,2046.6,2046.0,2.20527]
[1625197576026,4.85707,2046.6,2044.3,0.974]
[1625197576234,4.85707,2046.6,2044.0,3.18249852]
[1625197576688,4.85707,2046.6,2044.1,17.69]
[1625197577000,4.85707,2046.6,2044.5,1.15]